fUST/lending_fUST_20250606
["ID","MTS","AMOUNT","RATE_DAILY","PERIOD"]
[364595459,1749155437322,-427.02,0.00020581,2]
[364595461,1749155437331,-440.0,0.00020581,2]
[364595463,1749155437341,-440.0,0.00020581,2]
[364595465,1749155437353,-1024.89975299,0.00020581,2]
[364595467,1749155437363,-440.0,0.00020581,2]
[364595469,1749155437374,-361.85403252,0.00020855,2]
[364595471,1749155437384,-440.0,0.00020855,2]
[364595473,1749155437395,-440.0,0.00020855,2]
[364595475,1749155437407,-410.0,0.00020855,2]
[364595477,1749155437417,-440.0,0.00020855,2]
[364595479,1749155437427,-440.0,0.00020855,2]
[364595482,1749155437437,-440.0,0.00020855,2]
[364595485,1749155437447,-440.0,0.00020855,2]
[364595487,1749155437457,-440.0,0.00020855,2]
[364595489,1749155437466,-420.0,0.00020855,2]
[364595492,1749155437477,-440.0,0.00020855,2]
[364595495,1749155437487,-440.0,0.00020855,2]
[364595497,1749155437498,-440.0,0.00020855,2]
[364595501,1749155437508,-440.0,0.00020855,2]
[364595503,1749155437518,-440.0,0.00020855,2]
[364595505,1749155437527,-430.0,0.00020855,2]
[364595509,1749155437537,-440.0,0.00020855,2]
[364595513,1749155437547,-430.92544149,0.00020855,2]
[364595516,1749155437556,-440.0,0.00020855,2]
[364595518,1749155437566,-440.0,0.00020855,2]
[364595520,1749155437576,-240.51085167,0.00020855,2]
[364595522,1749155437586,-325.08,0.00020855,2]
[364595524,1749155437595,-440.0,0.00020855,2]
[364595526,1749155437604,-440.0,0.00020855,2]
[364595529,1749155437613,-440.0,0.00020855,2]
[364595533,1749155437623,-440.0,0.00020855,2]
[364595535,1749155437632,-440.0,0.00020855,2]
[364595536,1749155437641,-430.0,0.00020855,2]
[364595537,1749155437651,-420.0,0.00020855,2]
[364595538,1749155437660,-440.0,0.00020855,2]
[364595539,1749155437669,-440.0,0.00020855,2]
[364595540,1749155437679,-440.0,0.00020855,2]
[364595541,1749155437688,-440.0,0.00020855,2]
[364595542,1749155437697,-440.0,0.00020855,2]
[364595543,1749155437706,-345.58,0.00020855,2]
[364595544,1749155437715,-440.0,0.00020855,2]
[364595545,1749155437725,-440.0,0.00020855,2]
[364595546,1749155437734,-440.0,0.00020855,2]
[364595547,1749155437743,-440.0,0.00020855,2]
[364595548,1749155437756,-255.4406849,0.00020855,2]
[364595549,1749155437766,-500.0,0.00020884,2]
[364595550,1749155437775,-500.0,0.00020884,2]
[364595551,1749155437785,-432.76059529,0.000209,4]
[364595552,1749155437794,-500.0,0.00020918,2]
[364595553,1749155437803,-500.0,0.00020918,2]
[364595554,1749155437813,-500.0,0.00020918,2]
[364595555,1749155437822,-444.14737242,0.00020987,2]
[364595556,1749155437832,-432.76059502,0.00021038,4]
[364595557,1749155437842,-500.0,0.00021105,2]
[364595558,1749155437851,-203.32136593,0.00021105,2]
[364595559,1749155437860,-243.27392431,0.00021129,2]
[364595560,1749155437870,-537.65,0.00021129,2]
[364595561,1749155437880,-261.62673082,0.00021129,2]
[364595562,1749155437890,-440.0,0.00021129,2]
[364595563,1749155437900,-440.0,0.00021129,2]
[364595564,1749155437909,-410.0,0.00021129,2]
[364595565,1749155437919,-440.0,0.00021129,2]
[364595566,1749155437928,-440.0,0.00021129,2]
[364595567,1749155437938,-159.25850839,0.00021129,2]
[364595568,1749155437948,-401.89756893,0.00021129,2]
[364595569,1749155437958,-410.0,0.00021129,2]
[364595570,1749155437968,-175.54712852,0.00021129,2]
[364595571,1749155437977,-430.0,0.00021129,2]
[364595572,1749155437987,-440.0,0.00021129,2]
[364595573,1749155437996,-224.75107337,0.00021129,2]
[364595574,1749155438007,-440.0,0.00021129,2]
[364595575,1749155438016,-420.0,0.00021129,2]
[364595576,1749155438026,-430.0,0.00021129,2]
[364595577,1749155438036,-280.55603492,0.00021129,2]
[364595578,1749155438046,-440.0,0.00021129,2]
[364595579,1749155438055,-440.0,0.00021129,2]
[364595580,1749155438065,-440.0,0.00021129,2]
[364595581,1749155438074,-440.0,0.00021129,2]
[364595582,1749155438084,-440.0,0.00021129,2]
[364595583,1749155438094,-440.0,0.00021129,2]
[364595584,1749155438105,-440.0,0.00021129,2]
[364595585,1749155438115,-440.0,0.00021129,2]
[364595586,1749155438125,-164.84601593,0.00021129,2]
[364595587,1749155438135,-440.0,0.00021129,2]
[364595588,1749155438145,-440.0,0.00021129,2]
[364595589,1749155438155,-440.0,0.00021129,2]
[364595590,1749155438166,-420.0,0.00021129,2]
[364595591,1749155438176,-440.0,0.00021129,2]
[364595592,1749155438186,-440.0,0.00021129,2]
[364595593,1749155438196,-440.0,0.00021129,2]
[364595594,1749155438206,-440.0,0.00021129,2]
[364595595,1749155438215,-400.0,0.00021129,2]
[364595596,1749155438225,-171.08896332,0.00021129,2]
[364595597,1749155438234,-420.0,0.00021129,2]
[364595598,1749155438244,-194.92441442,0.00021129,2]
[364595599,1749155438256,-488.96,0.00021129,2]
[364595600,1749155438266,-440.0,0.00021129,2]
[364595602,1749155438275,-440.0,0.00021129,2]
[364595603,1749155438285,-440.0,0.00021129,2]
[364595604,1749155438295,-440.0,0.00021129,2]
[364595605,1749155438304,-440.0,0.00021129,2]
[364595606,1749155438314,-440.0,0.00021129,2]
[364595607,1749155438323,-432.76059502,0.00021176,4]
[364595608,1749155438332,-500.0,0.00021244,2]
[364595609,1749155438341,-500.0,0.00021244,2]
[364595610,1749155438350,-566.49146546,0.00021244,2]
[364595611,1749155438360,-432.76059502,0.00021314,5]
[364595612,1749155438370,-509.095387,0.00021319,2]
[364595613,1749155438380,-440.0,0.00021403,2]
[364595614,1749155438393,-341.51226882,0.00021403,2]
[364595615,1749155438403,-191.3642015,0.00021403,2]
[364595617,1749155438412,-440.0,0.00021403,2]
[364595619,1749155438422,-310.0,0.00021403,2]
[364595621,1749155438432,-440.0,0.00021403,2]
[364595623,1749155438441,-430.0,0.00021403,2]
[364595625,1749155438451,-440.0,0.00021403,2]
[364595627,1749155438460,-440.0,0.00021403,2]
[364595629,1749155438469,-440.0,0.00021403,2]
[364595630,1749155438480,-440.0,0.00021403,2]
[364595631,1749155438490,-440.0,0.00021403,2]
[364595632,1749155438500,-440.0,0.00021403,2]
[364595633,1749155438509,-440.0,0.00021403,2]
[364595634,1749155438518,-440.0,0.00021403,2]
[364595635,1749155438527,-440.0,0.00021403,2]
[364595636,1749155438536,-440.0,0.00021403,2]
[364595637,1749155438545,-440.0,0.00021403,2]
[364595638,1749155438553,-440.0,0.00021403,2]
[364595639,1749155438562,-440.0,0.00021403,2]
[364595640,1749155438571,-440.0,0.00021403,2]
[364595641,1749155438580,-542.82826175,0.00021432,2]
[364595642,1749155438588,-1098.06223443,0.00021432,2]
[364595643,1749155438597,-432.76059502,0.00021452,5]
[364595644,1749155438606,-200.0,0.00021487,2]
[364595645,1749155438615,-500.0,0.00021505,2]
[364595646,1749155438623,-432.76059502,0.0002159,5]
[364595647,1749155438632,-3056.09,0.000216,2]
[364595648,1749155438641,-392.74454424,0.00021677,2]
[364595649,1749155438650,-440.0,0.00021677,2]
[364595650,1749155438659,-500.0,0.00021677,2]
[364595651,1749155438667,-440.0,0.00021677,2]
[364595652,1749155438676,-440.0,0.00021677,2]
[364595653,1749155438685,-440.0,0.00021677,2]
[364595654,1749155438694,-440.0,0.00021677,2]
[364595655,1749155438702,-440.0,0.00021677,2]
[364595656,1749155438711,-440.0,0.00021677,2]
[364595657,1749155438720,-440.0,0.00021677,2]
[364595658,1749155438729,-440.0,0.00021677,2]
[364595659,1749155438738,-440.0,0.00021677,2]
[364595660,1749155438746,-440.0,0.00021677,2]
[364595661,1749155438757,-440.0,0.00021677,2]
[364595662,1749155438766,-440.0,0.00021677,2]
[364595664,1749155438774,-440.0,0.00021677,2]
[364595667,1749155438783,-340.0,0.00021677,2]
[364595670,1749155438792,-1258.69,0.000217,2]
[364595673,1749155438801,-432.76059502,0.00021728,5]
[364595676,1749155438810,-1000.0,0.00021792,2]
[364595678,1749155438819,-500.0,0.00021792,2]
[364595681,1749155438828,-420.0,0.00021813,2]
[364595683,1749155438838,-432.76059502,0.00021866,6]
[364595686,1749155438847,-1086.82,0.00021941,3]
[364595689,1749155438856,-631.5,0.00021941,3]
[364595691,1749155438866,-400.0,0.00021951,2]
[364595694,1749155438875,-440.0,0.00021951,2]
[364595696,1749155438884,-440.0,0.00021951,2]
[364595699,1749155438893,-440.0,0.00021951,2]
[364595701,1749155438902,-440.0,0.00021951,2]
[364595703,1749155438911,-440.0,0.00021951,2]
[364595706,1749155438920,-440.0,0.00021951,2]
[364595708,1749155438928,-525.14,0.00021951,2]
[364595710,1749155438938,-440.0,0.00021951,2]
[364595713,1749155438948,-440.0,0.00021951,2]
[364595716,1749155438957,-440.0,0.00021951,2]
[364595718,1749155438967,-440.0,0.00021951,2]
[364595721,1749155438976,-440.0,0.00021951,2]
[364595724,1749155438985,-440.0,0.00021951,2]
[364595725,1749155438995,-432.76059502,0.00022003,6]
[364595729,1749155439006,-1000.0,0.00022053,2]
[364595731,1749155439015,-432.76059502,0.00022141,6]
[364595752,1749155439128,-5900.14932411,0.000222,69]
[364595754,1749155439139,-5900.14932411,0.000222,69]
[364595757,1749155439148,-315.76,0.00022215,3]
[364595760,1749155439157,-479.0,0.00022215,10]
[364595763,1749155439167,-440.0,0.00022225,2]
[364595766,1749155439177,-440.0,0.00022225,2]
[364595768,1749155439186,-440.0,0.00022225,2]
[364595770,1749155439195,-440.0,0.00022225,2]
[364595772,1749155439205,-440.0,0.00022225,2]
[364595774,1749155439213,-390.0,0.00022225,2]
[364595776,1749155439223,-440.0,0.00022225,2]
[364595778,1749155439232,-440.0,0.00022225,2]
[364595780,1749155439241,-164.75,0.00022225,2]
[364595781,1749155439251,-440.0,0.00022225,2]
[364595783,1749155439261,-440.0,0.00022225,2]
[364595785,1749155439270,-432.76059502,0.00022279,6]
[364595787,1749155439280,-5900.14932411,0.00022342,69]
[364595789,1749155439290,-432.76059502,0.00022417,7]
[364595791,1749155439300,-440.0,0.00022499,2]
[364595793,1749155439310,-440.0,0.00022499,2]
[364595795,1749155439319,-330.0,0.00022499,2]
[364595797,1749155439329,-440.0,0.00022499,2]
[364595799,1749155439338,-151.30171772,0.00022499,2]
[364595801,1749155439348,-440.0,0.00022499,2]
[364595803,1749155439357,-440.0,0.00022499,2]
[364595804,1749155439365,-440.0,0.00022499,2]
[364595806,1749155439375,-432.76059502,0.00022555,7]
[364595809,1749155439384,-36922.97714567,0.0002259,2]
[364595824,1749155439466,-152303.05057585,0.0002259,2]
[364595826,1749155439477,-207.4,0.00022684,2]
[364595828,1749155439486,-432.76059502,0.00022693,7]
[364595829,1749155439495,-440.0,0.00022773,2]
[364595832,1749155439507,-440.0,0.00022773,2]
[364595835,1749155439516,-440.0,0.00022773,2]
[364595838,1749155439526,-440.0,0.00022773,2]
[364595840,1749155439535,-440.0,0.00022773,2]
[364595842,1749155439545,-440.0,0.00022773,2]
[364595844,1749155439554,-432.76059502,0.00022831,8]
[364595846,1749155439564,-432.76059502,0.00022969,8]
[364595847,1749155439574,-3056.09,0.00023,7]
[364595848,1749155439584,-12042.23098288,0.00023,2]
[364595849,1749155439593,-17490.76732529,0.00023,30]
[364595850,1749155439602,-294.89,0.00023,7]
[364595851,1749155439611,-11978.36501454,0.00023,20]
[364595852,1749155439621,-440.0,0.00023047,2]
[364595853,1749155439631,-440.0,0.00023047,2]
[364595854,1749155439640,-440.0,0.00023047,2]
[364595855,1749155439651,-440.0,0.00023047,2]
[364595856,1749155439660,-440.0,0.00023047,2]
[364595857,1749155439670,-432.76059502,0.00023107,8]
[364595858,1749155439679,-432.76059502,0.00023245,8]
[364595859,1749155439688,-5900.14932411,0.00023272,73]
[364595860,1749155439697,-440.0,0.00023321,2]
[364595861,1749155439706,-440.0,0.00023321,2]
[364595862,1749155439716,-440.0,0.00023321,2]
[364595863,1749155439726,-409.81222265,0.00023321,2]
[364595864,1749155439735,-264.48,0.00023321,2]
[364595865,1749155439744,-432.76059502,0.00023383,9]
[364595867,1749155439756,-1313.04,0.000234,2]
[364595868,1749155439766,-306.0,0.00023449,2]
[364595869,1749155439775,-432.76059502,0.00023521,9]
[364595870,1749155439784,-293.04,0.00023595,2]
[364595871,1749155439793,-440.0,0.00023595,2]
[364595872,1749155439802,-440.0,0.00023595,2]
[364595873,1749155439812,-4229.53369741,0.00023613,7]
[364595874,1749155439822,-432.76059502,0.00023659,9]
[364595875,1749155439832,-1050.0,0.000237,9]
[364595876,1749155439841,-587.0,0.00023751,2]
[364595877,1749155439851,-578.461818,0.00023793,3]
[364595878,1749155439860,-432.76059502,0.00023797,9]
[364595879,1749155439870,-500.0,0.00023799,2]
[364595880,1749155439879,-254.20970362,0.00023799,2]
[364595881,1749155439889,-500.0,0.00023799,2]
[364595882,1749155439898,-222.57499057,0.00023799,2]
[364595883,1749155439908,-500.0,0.00023799,2]
[364595884,1749155439918,-500.0,0.00023799,2]
[364595885,1749155439928,-380.91974936,0.00023799,2]
[364595886,1749155439937,-500.0,0.00023799,2]
[364595887,1749155439946,-500.0,0.00023799,2]
[364595888,1749155439955,-500.0,0.00023799,2]
[364595889,1749155439965,-267.97049397,0.00023799,2]
[364595890,1749155439974,-234.18945702,0.00023799,2]
[364595891,1749155439984,-500.0,0.00023799,2]
[364595892,1749155439995,-500.0,0.00023799,2]
[364595893,1749155440010,-500.0,0.00023799,2]
[364595894,1749155440020,-500.0,0.00023799,2]
[364595896,1749155440030,-500.0,0.00023799,2]
[364595897,1749155440039,-594.47911261,0.00023799,2]
[364595899,1749155440049,-500.0,0.00023799,2]
[364595901,1749155440059,-500.0,0.00023799,2]
[364595903,1749155440068,-500.0,0.00023799,2]
[364595905,1749155440078,-500.0,0.00023799,2]
[364595907,1749155440087,-500.0,0.00023799,2]
[364595909,1749155440097,-500.0,0.00023799,2]
[364595911,1749155440107,-500.0,0.00023799,2]
[364595913,1749155440116,-500.0,0.00023799,2]
[364595915,1749155440126,-500.0,0.00023799,2]
[364595917,1749155440136,-500.0,0.00023799,2]
[364595919,1749155440146,-500.0,0.00023799,2]
[364595921,1749155440155,-500.0,0.00023799,2]
[364595923,1749155440166,-643.06372295,0.00023799,2]
[364595925,1749155440176,-500.0,0.00023799,2]
[364595927,1749155440186,-500.0,0.00023799,2]
[364595929,1749155440197,-500.0,0.00023799,2]
[364595931,1749155440207,-500.0,0.00023799,2]
[364595933,1749155440217,-500.0,0.00023799,2]
[364595935,1749155440228,-500.0,0.00023799,2]
[364595937,1749155440238,-500.0,0.00023799,2]
[364595939,1749155440247,-500.0,0.00023799,2]
[364595941,1749155440263,-500.0,0.00023799,2]
[364595942,1749155440274,-389.58142964,0.00023799,2]
[364595944,1749155440285,-1054.46656185,0.000238,2]
[364595946,1749155440298,-49600.00000004,0.000238,2]
[364595949,1749155440319,-67140.20034273,0.000238,2]
[364595951,1749155440328,-42682.04817272,0.000238,3]
[364595953,1749155440340,-207301.4556635,0.000238,3]
[364595955,1749155440349,-160.0,0.00023814,2]
[364595957,1749155440359,-440.0,0.00023869,2]
[364595958,1749155440368,-440.0,0.00023869,2]
[364595960,1749155440378,-1258.69,0.000239,7]
[364595963,1749155440391,-158.154545,0.000239,3]
[364595965,1749155440402,-432.76059502,0.00023934,10]
[364595966,1749155440412,-10549.7246697,0.00023995,2]
[364595968,1749155440421,-206.0,0.00024,2]
[364595970,1749155440432,-5026.06737994,0.00024,2]
[364595972,1749155440441,-695.849,0.00024011,2]
[364595974,1749155440450,-423.052,0.00024011,2]
[364595976,1749155440460,-405.0,0.00024011,2]
[364595978,1749155440470,-215.0738,0.00024053,2]
[364595980,1749155440482,-432.76059502,0.00024072,10]
[364595982,1749155440492,-440.0,0.00024143,2]
[364595984,1749155440504,-440.0,0.00024143,2]
[364595986,1749155440514,-2000.0,0.000242,2]
[364595987,1749155440523,-2000.0,0.000242,2]
[364595989,1749155440532,-2000.0,0.000242,2]
[364595991,1749155440542,-150.0,0.000242,30]
[364595993,1749155440551,-432.76059502,0.0002421,10]
[364595995,1749155440561,-160.0,0.00024287,7]
[364595997,1749155440571,-12675.11581177,0.00024287,30]
[364595999,1749155440581,-151.0,0.00024287,7]
[364596001,1749155440591,-151.0,0.00024287,7]
[364596003,1749155440600,-151.0,0.00024287,7]
[364596005,1749155440609,-151.0,0.00024287,7]
[364596007,1749155440619,-151.0,0.00024287,7]
[364596009,1749155440629,-151.0,0.00024287,7]
[364596011,1749155440638,-163.279386,0.00024287,7]
[364596012,1749155440647,-151.0,0.00024287,7]
[364596014,1749155440656,-255.18757,0.00024287,7]
[364596015,1749155440666,-151.0,0.00024287,7]
[364596017,1749155440676,-151.0,0.00024287,7]
[364596019,1749155440686,-151.0,0.00024287,7]
[364596021,1749155440696,-151.0,0.00024287,7]
[364596022,1749155440705,-151.0,0.00024287,7]
[364596024,1749155440715,-244.280696,0.00024287,7]
[364596025,1749155440724,-315.01552021,0.0002429,30]
[364596026,1749155440734,-437.351281,0.00024294,7]
[364596027,1749155440743,-437.351281,0.00024294,7]
[364596028,1749155440752,-437.351281,0.00024294,7]
[364596030,1749155440761,-437.351285,0.00024294,7]
[364596032,1749155440772,-151.0,0.00024294,7]
[364596033,1749155440782,-151.0,0.00024294,7]
[364596035,1749155440792,-151.0,0.00024294,7]
[364596037,1749155440802,-151.0,0.00024294,7]
[364596039,1749155440812,-151.0,0.00024294,7]
[364596041,1749155440822,-151.0,0.00024294,7]
[364596043,1749155440831,-151.0,0.00024294,7]
[364596045,1749155440841,-151.0,0.00024294,7]
[364596047,1749155440850,-151.0,0.00024294,7]
[364596049,1749155440859,-151.0,0.00024294,7]
[364596051,1749155440868,-151.0,0.00024294,7]
[364596053,1749155440877,-151.0,0.00024294,7]
[364596055,1749155440886,-151.0,0.00024294,7]
[364596057,1749155440895,-151.0,0.00024294,7]
[364596059,1749155440904,-151.0,0.00024294,7]
[364596061,1749155440914,-193.356936,0.00024294,7]
[364596063,1749155440923,-151.0,0.00024294,7]
[364596065,1749155440932,-151.0,0.00024294,7]
[364596066,1749155440942,-151.0,0.00024294,7]
[364596069,1749155440951,-151.0,0.00024294,7]
[364596071,1749155440961,-151.0,0.00024294,7]
[364596073,1749155440971,-202.205927,0.00024294,7]
[364596074,1749155440980,-151.0,0.00024294,7]
[364596075,1749155440989,-151.0,0.00024294,7]
[364596076,1749155440998,-151.0,0.00024294,7]
[364596077,1749155441009,-151.0,0.00024294,7]
[364596078,1749155441019,-151.0,0.00024294,7]
[364596079,1749155441028,-171.25427,0.00024294,7]
[364596081,1749155441038,-151.0,0.00024294,7]
[364596083,1749155441047,-151.0,0.00024299,7]
[364596085,1749155441058,-151.0,0.00024299,7]
[364596087,1749155441067,-151.0,0.00024299,7]
[364596089,1749155441077,-157.834877,0.00024299,7]
[364596090,1749155441086,-200.0,0.00024299,7]
[364596093,1749155441096,-151.0,0.00024299,7]
[364596095,1749155441105,-259.332202,0.00024299,7]
[364596097,1749155441114,-151.0,0.00024299,7]
[364596099,1749155441123,-151.0,0.00024299,7]
[364596101,1749155441132,-151.0,0.00024299,7]
[364596102,1749155441141,-151.0,0.00024299,7]
[364596104,1749155441151,-151.0,0.00024299,7]
[364596106,1749155441161,-293.934596,0.00024299,7]
[364596108,1749155441171,-151.0,0.00024299,7]
[364596110,1749155441181,-151.0,0.00024299,7]
[364596112,1749155441191,-151.0,0.00024299,7]
[364596114,1749155441200,-196.244923,0.00024299,7]
[364596116,1749155441210,-151.0,0.00024299,7]
[364596118,1749155441220,-151.0,0.00024299,7]
[364596120,1749155441229,-151.0,0.00024299,7]
[364596122,1749155441239,-151.0,0.00024299,7]
[364596124,1749155441249,-151.0,0.00024299,7]
[364596127,1749155441261,-151.0,0.00024299,7]
[364596129,1749155441270,-151.0,0.00024299,7]
[364596131,1749155441280,-151.0,0.00024299,7]
[364596133,1749155441291,-243.93163,0.00024299,7]
[364596134,1749155441301,-161416.7,0.000243,7]
[364596137,1749155441311,-13816.11,0.000243,2]
[364596139,1749155441320,-315.01552021,0.000243,10]
[364596140,1749155441330,-158.154545,0.000243,7]
[364596143,1749155441339,-12675.11581177,0.000243,10]
[364596154,1749155441350,-292.8,0.000243,2]
[364596157,1749155441460,-500.0,0.00024301,2]
[364596159,1749155441469,-500.0,0.00024301,2]
[364596161,1749155441479,-524.53037605,0.00024301,2]
[364596163,1749155441489,-151.0,0.00024301,7]
[364596165,1749155441499,-152.866879,0.00024301,7]
[364596166,1749155441510,-151.0,0.00024301,7]
[364596168,1749155441519,-151.0,0.00024301,7]
[364596170,1749155441528,-151.0,0.00024301,7]
[364596172,1749155441538,-151.0,0.00024301,7]
[364596175,1749155441548,-151.0,0.00024301,7]
[364596177,1749155441558,-206.485733,0.00024301,7]
[364596179,1749155441567,-151.0,0.00024301,7]
[364596180,1749155441576,-222.5428,0.00024301,7]
[364596183,1749155441586,-222.5428,0.00024301,7]
[364596185,1749155441595,-222.5428,0.00024301,7]
[364596186,1749155441605,-222.5428,0.00024301,7]
[364596189,1749155441614,-222.5428,0.00024301,7]
[364596190,1749155441623,-222.5428,0.00024301,7]
[364596192,1749155441633,-222.5428,0.00024301,7]
[364596195,1749155441642,-222.5428,0.00024301,7]
[364596196,1749155441652,-222.5428,0.00024301,7]
[364596198,1749155441661,-222.5428,0.00024301,7]
[364596201,1749155441671,-222.5428,0.00024301,7]
[364596203,1749155441680,-222.5428,0.00024301,7]
[364596205,1749155441690,-222.5428,0.00024301,7]
[364596206,1749155441699,-222.5428,0.00024301,7]
[364596208,1749155441708,-222.5428,0.00024301,7]
[364596210,1749155441718,-222.5428,0.00024301,7]
[364596212,1749155441727,-222.5428,0.00024301,7]
[364596214,1749155441736,-222.5428,0.00024301,7]
[364596216,1749155441746,-222.5428,0.00024301,7]
[364596218,1749155441757,-222.542808,0.00024301,7]
[364596220,1749155441766,-151.0,0.00024301,7]
[364596222,1749155441775,-151.0,0.00024301,7]
[364596224,1749155441785,-151.0,0.00024301,7]
[364596226,1749155441794,-228.338956,0.00024301,7]
[364596228,1749155441804,-470380.10099883,0.00024302,20]
[364596230,1749155441813,-90736.94317446,0.00024302,2]
[364596232,1749155441822,-300.0,0.00024302,2]
[364596234,1749155441831,-3859.79661213,0.00024302,2]
[364596236,1749155441840,-805.35729501,0.00024302,2]
[364596238,1749155441849,-295.28431529,0.00024302,2]
[364596240,1749155441859,-325.25351236,0.00024302,2]
[364596242,1749155441867,-1202.96186514,0.00024302,2]
[364596244,1749155441876,-290.28099957,0.00024302,2]
[364596246,1749155441885,-51448.4903983,0.00024302,2]
[364596248,1749155441895,-633.81644713,0.00024302,2]
[364596250,1749155441904,-155.77813368,0.00024302,2]
[364596252,1749155441913,-10250.52265067,0.00024302,2]
[364596254,1749155441922,-6258.81344678,0.00024302,2]
[364596256,1749155441932,-156.79242763,0.00024302,2]
[364596258,1749155441941,-443.91978403,0.00024302,2]
[364596260,1749155441951,-1859.50243057,0.00024302,2]
[364596262,1749155441960,-504.87035522,0.00024302,2]
[364596264,1749155441970,-13705.91981994,0.00024302,2]
[364596266,1749155441979,-1865.33329816,0.00024302,2]
[364596268,1749155441989,-465.54633419,0.00024302,2]
[364596270,1749155441999,-30288.1737653,0.00024302,2]
[364596272,1749155442010,-188.1791318,0.00024302,2]
[364596274,1749155442020,-1389.18634681,0.00024302,2]
[364596276,1749155442029,-301.536596,0.00024302,2]
[364596278,1749155442039,-5862.73366671,0.00024302,2]
[364596280,1749155442048,-583.59541096,0.00024302,2]
[364596282,1749155442058,-647.72250838,0.00024302,2]
[364596284,1749155442066,-2920.0,0.00024302,2]
[364596286,1749155442076,-10017.47254643,0.00024302,2]
[364596288,1749155442085,-1139979.95604927,0.00024302,20]
[364596290,1749155442098,-1327981.06464557,0.00024302,20]
[364596292,1749155442108,-2595862.67236454,0.00024302,20]
[364596444,1749155443039,-440.0,0.00020581,2]
[364596447,1749155443049,-948.19834535,0.00022584,2]
[364596450,1749155443059,-948.19834532,0.00022989,2]
[364596453,1749155443069,-948.19834532,0.00023393,2]
[364596456,1749155443079,-5900.14932411,0.00024202,77]
[364596459,1749155443088,-937.87366865,0.00024302,20]
[364596462,1749155443100,-2506.8,0.00024302,20]
[364596466,1749155443112,-1000.0,0.00024302,20]
[364596471,1749155443127,-253.975,0.00023799,2]
[364596681,1749155444264,-246.025,0.00023799,2]
[364596683,1749155444275,-62030.74034236,0.00024302,20]
[364596878,1749155446715,-440.0,0.00020581,2]
[364596879,1749155446726,-948.19834532,0.00023798,2]
[364596880,1749155446735,-47.2055746,0.00024202,2]
[364596881,1749155446747,-280.44070962,0.00024202,2]
[364596882,1749155446773,-620.5520611,0.00024202,2]
[364596883,1749155446782,-11438.79061575,0.00024302,20]
[364596884,1749155446794,-180947.93205381,0.00024302,20]
[364597076,1749155483776,277.95620552,0.00019964,2]
[364597078,1749155576569,1912.8327315,0.00019342,2]
[364597079,1749155582477,150.0,0.00016603,2]
[364597080,1749155582954,150.0,0.00017394,2]
[364597081,1749155583591,150.0,0.00018184,2]
[364597082,1749155583967,150.0,0.00018975,2]
[364597083,1749155596956,828.03395,0.00019342,2]
[364597087,1749155731436,200.0,0.0002414,120]
[364597088,1749155785670,166.77372332,0.00019964,2]
[364597089,1749155790973,200.0,0.00024847,120]
[364597091,1749155910985,200.0,0.00024377,120]
[364597092,1749155970977,200.0,0.00024293,120]
[364597096,1749156152688,400.0,0.00025,120]
[364597097,1749156158545,24525.44891797,0.0001958,2]
[364597098,1749156158578,374.55108203,0.0001958,2]